fUST/lending_fUST_20250811
["ID","MTS","AMOUNT","RATE_DAILY","PERIOD"]
[378524266,1754895701681,460.0,0.00031338,30]
[378524267,1754895706040,460.0,0.00031338,30]
[378524268,1754895706323,460.0,0.00031338,30]
[378524269,1754895706863,460.0,0.00031338,30]
[378524270,1754895707060,460.0,0.00031338,30]
[378524271,1754895707297,460.0,0.00031338,30]
[378524272,1754895707351,460.0,0.00031338,30]
[378524273,1754895707577,460.0,0.00031338,30]
[378524274,1754895707851,460.0,0.00031338,30]
[378524275,1754895707960,460.0,0.00031338,30]
[378524276,1754895708483,460.0,0.00031338,30]
[378524277,1754895708962,460.0,0.00031338,30]
[378524278,1754895709345,531.59,0.00031338,30]
[378524279,1754895711026,460.0,0.00031338,30]
[378524280,1754895719672,460.0,0.00031338,30]
[378524281,1754895720961,460.0,0.00031338,30]
[378524282,1754895721637,460.0,0.00031338,30]
[378524283,1754895721892,460.0,0.00031338,30]
[378524284,1754895722128,460.0,0.00031338,30]
[378524285,1754895722383,460.0,0.00031338,30]
[378524286,1754895727812,460.0,0.00031338,30]
[378524287,1754895729534,460.0,0.00031338,30]
[378524288,1754895729804,271.77467419,0.00031338,30]
[378524289,1754895730367,460.0,0.00031338,30]
[378524290,1754895731627,462.42586638,0.00031338,30]
[378524291,1754895733494,460.0,0.00031338,30]
[378524292,1754895733732,460.0,0.00031338,30]
[378524293,1754895733966,460.0,0.00031338,30]
[378524294,1754895734228,460.0,0.00031338,30]
[378524295,1754895740263,460.0,0.00031338,30]
[378524296,1754895741892,463.32589812,0.00031338,30]
[378524297,1754895744366,460.0,0.00031338,30]
[378524298,1754895744774,460.0,0.00031338,30]
[378524299,1754895745266,460.0,0.00031338,30]
[378524300,1754895745583,460.0,0.00031338,30]
[378524301,1754895746066,460.0,0.00031338,30]
[378524302,1754895746418,460.0,0.00031338,30]
[378524303,1754895746862,460.0,0.00031338,30]
[378524304,1754895747145,460.0,0.00031338,30]
[378524305,1754895748159,460.0,0.00031338,30]
[378524306,1754895748239,565.67136484,0.00031338,30]
[378524307,1754895748454,460.0,0.00031338,30]
[378524308,1754895748657,460.0,0.00031338,30]
[378524309,1754895748822,460.0,0.00031338,30]
[378524310,1754895749067,460.0,0.00031338,30]
[378524311,1754895749322,598.56,0.00031338,30]
[378524312,1754895749684,479.73702243,0.00031338,30]
[378524313,1754895749755,303.2,0.00031338,30]
[378524314,1754895750601,479.70448162,0.00031338,30]
[378524315,1754895751587,460.0,0.00031338,30]
[378524316,1754895751823,460.0,0.00031338,30]
[378524317,1754895752075,460.0,0.00031338,30]
[378524318,1754895752343,460.0,0.00031338,30]
[378524319,1754895752394,460.0,0.00031338,30]
[378524320,1754895752776,460.0,0.00031338,30]
[378524321,1754895753271,460.0,0.00031338,30]
[378524322,1754895753542,460.0,0.00031338,30]
[378524323,1754895753783,460.0,0.00031338,30]
[378524324,1754895754131,460.0,0.00031338,30]
[378524325,1754895754378,460.0,0.00031338,30]
[378524326,1754895754989,460.0,0.00031338,30]
[378524327,1754895755042,460.0,0.00031338,30]
[378524328,1754895755099,460.0,0.00031338,30]
[378524329,1754895755149,460.0,0.00031338,30]
[378524330,1754895756144,460.0,0.00031338,30]
[378524331,1754895756395,460.0,0.00031338,30]
[378524332,1754895759220,460.0,0.00031338,30]
[378524333,1754895765972,460.0,0.00031338,30]
[378524334,1754895772533,464.25032853,0.00031338,30]
[378524335,1754895772592,460.0,0.00031338,30]
[378524336,1754895772857,460.0,0.00031338,30]
[378524337,1754895773163,460.0,0.00031338,30]
[378524338,1754895773464,460.0,0.00031338,30]
[378524339,1754895773757,460.0,0.00031338,30]
[378524340,1754895773986,460.0,0.00031338,30]
[378524341,1754895774227,460.0,0.00031338,30]
[378524342,1754895774469,460.0,0.00031338,30]
[378524343,1754895774721,460.0,0.00031338,30]
[378524344,1754895777987,460.0,0.00031338,30]
[378524345,1754895778239,460.0,0.00031338,30]
[378524346,1754895778580,460.0,0.00031338,30]
[378524347,1754895778729,460.0,0.00031338,30]
[378524348,1754895780731,460.0,0.00031338,30]
[378524349,1754895780967,460.0,0.00031338,30]
[378524350,1754895781230,460.0,0.00031338,30]
[378524351,1754895781461,398.92,0.00031338,30]
[378524352,1754895781506,460.0,0.00031338,30]
[378524353,1754895782599,460.0,0.00031338,30]
[378524354,1754895782861,460.0,0.00031338,30]
[378524355,1754895783346,460.0,0.00031338,30]
[378524356,1754895783397,460.0,0.00031338,30]
[378524357,1754895787214,460.0,0.00031338,30]
[378524358,1754895787468,460.0,0.00031338,30]
[378524359,1754895787767,460.0,0.00031338,30]
[378524360,1754895788046,460.0,0.00031338,30]
[378524361,1754895789113,460.0,0.00031338,30]
[378524362,1754895789272,447.8360474,0.00031338,30]
[378524363,1754895793198,474.23827294,0.00031338,30]
[378524364,1754895797481,460.0,0.00031338,30]
[378524365,1754895803735,460.0,0.00031338,30]
[378524366,1754895804001,460.0,0.00031338,30]
[378524367,1754895804314,460.0,0.00031338,30]
[378524368,1754895804641,460.0,0.00031338,30]
[378524370,1754895808305,460.0,0.00031338,30]
[378524371,1754895808547,460.0,0.00031338,30]
[378524372,1754895808842,460.0,0.00031338,30]
[378524373,1754895809086,460.0,0.00031338,30]
[378524374,1754895809604,460.0,0.00031338,30]
[378524375,1754895809784,460.0,0.00031338,30]
[378524376,1754895810869,460.0,0.00031338,30]
[378524377,1754895811155,460.0,0.00031338,30]
[378524378,1754895817247,464.76193236,0.00031338,30]
[378524379,1754895817421,460.0,0.00031338,30]
[378524380,1754895817651,460.0,0.00031338,30]
[378524381,1754895817885,460.0,0.00031338,30]
[378524382,1754895818136,217.1684481,0.00031338,30]
[378524383,1754895819357,275.74279021,0.000199,2]
[378524384,1754895819965,460.0,0.00031338,30]
[378524385,1754895820292,490.73637284,0.00031338,30]
[378524386,1754895820407,157.01903088,0.000199,2]
[378524387,1754895821283,151.0,0.000199,2]
[378524388,1754895822169,163.03806177,0.000199,2]
[378524389,1754895827295,460.0,0.00031338,30]
[378524390,1754895827604,460.0,0.00031338,30]
[378524391,1754895827648,491.48156457,0.00031338,30]
[378524392,1754895827875,460.0,0.00031338,30]
[378524393,1754895828117,460.0,0.00031338,30]
[378524394,1754895828378,460.0,0.00031338,30]
[378524395,1754895831584,460.0,0.00031338,30]
[378524396,1754895831895,460.0,0.00031338,30]
[378524397,1754895832163,464.94717827,0.00031338,30]
[378524398,1754895833647,460.0,0.00031338,30]
[378524399,1754895839607,494.50437531,0.00031338,30]
[378524400,1754895842800,460.0,0.00031338,30]
[378524401,1754895843714,460.0,0.00031338,30]
[378524402,1754895843971,460.0,0.00031338,30]
[378524403,1754895844253,460.0,0.00031338,30]
[378524404,1754895844515,460.0,0.00031338,30]
[378524405,1754895847644,460.0,0.00031338,30]
[378524406,1754895847876,460.0,0.00031338,30]
[378524407,1754895848145,460.0,0.00031338,30]
[378524408,1754895848382,291.18,0.00031338,30]
[378524409,1754895848953,460.0,0.00031338,30]
[378524410,1754895849209,460.0,0.00031338,30]
[378524411,1754895849454,460.0,0.00031338,30]
[378524412,1754895850721,460.0,0.00031338,30]
[378524413,1754895850941,460.0,0.00031338,30]
[378524414,1754895851188,460.0,0.00031338,30]
[378524415,1754895871153,224.2553594,0.00031355,30]
[378524416,1754895877038,460.0,0.00031355,30]
[378524417,1754895886368,460.0,0.00031355,30]
[378524418,1754895886595,460.0,0.00031355,30]
[378524419,1754895886839,603.58850228,0.00031355,30]
[378524420,1754895889292,462.96444199,0.00031355,30]
[378524421,1754895892111,460.0,0.00031355,30]
[378524422,1754895894719,460.0,0.00031355,30]
[378524423,1754895894961,457.02906027,0.00031355,30]
[378524424,1754895899010,460.0,0.00031355,30]
[378524425,1754895900345,460.0,0.00031355,30]
[378524426,1754895900661,520.26209175,0.00031355,30]
[378524427,1754895901356,467.15600279,0.00031355,30]
[378524428,1754895901458,460.0,0.00031355,30]
[378524429,1754895901707,460.0,0.00031355,30]
[378524430,1754895903128,460.0,0.00031355,30]
[378524431,1754895903400,460.0,0.00031355,30]
[378524432,1754895905020,461.58350743,0.00031355,30]
[378524433,1754895905184,460.0,0.00031355,30]
[378524434,1754895905465,460.0,0.00031355,30]
[378524435,1754895905722,467.22778876,0.00031355,30]
[378524436,1754895910990,460.0,0.00031355,30]
[378524437,1754895911242,460.0,0.00031355,30]
[378524438,1754895911524,460.0,0.00031355,30]
[378524439,1754895911770,460.0,0.00031355,30]
[378524440,1754895911805,2538.1615185,0.000199,2]
[378524441,1754895918647,460.0,0.00031355,30]
[378524442,1754895918885,460.0,0.00031355,30]
[378524443,1754895919134,460.0,0.00031355,30]
[378524444,1754895923577,460.0,0.00031355,30]
[378524445,1754895923824,460.0,0.00031355,30]
[378524446,1754895924066,460.0,0.00031355,30]
[378524499,1754895938075,460.0,0.00031355,30]
[378524518,1754895938322,460.0,0.00031355,30]
[378524525,1754895938551,460.0,0.00031355,30]
[378524529,1754895938868,460.0,0.00031355,30]
[378524530,1754895940714,460.0,0.00031355,30]
[378524531,1754895941347,460.0,0.00031355,30]
[378524532,1754895941734,460.0,0.00031355,30]
[378524533,1754895942205,279.2308314,0.00031355,30]
[378524534,1754895950723,460.0,0.00031355,30]
[378524535,1754895952956,460.0,0.00031355,30]
[378524536,1754895953221,460.0,0.00031355,30]
[378524537,1754895953487,460.0,0.00031355,30]
[378524538,1754895953721,460.0,0.00031355,30]
[378524539,1754895964094,462.19469759,0.00031355,30]
[378524540,1754895965882,462.73187356,0.00031355,30]
[378524541,1754895966732,342.90543968,0.00031355,30]
[378524542,1754895971159,460.0,0.00031355,30]
[378524543,1754895971422,460.0,0.00031355,30]
[378524544,1754895974798,462.59655891,0.00031355,30]
[378524545,1754895978179,462.69833513,0.00031355,30]
[378524546,1754895978449,460.0,0.00031355,30]
[378524547,1754895978701,460.0,0.00031355,30]
[378524548,1754895978953,460.0,0.00031355,30]
[378524549,1754895996068,501.0,0.000199,2]
[378524550,1754895997275,460.0,0.00031355,30]
[378524551,1754895997540,460.0,0.00031355,30]
[378524552,1754895997667,501.0,0.000199,2]
[378524553,1754895997798,460.0,0.00031355,30]
[378524554,1754895998054,460.0,0.00031355,30]
[378524555,1754895999399,501.0,0.000199,2]
[378524556,1754896000889,501.0,0.000199,2]
[378524557,1754896001028,466.01722623,0.00031355,30]
[378524558,1754896002142,501.0,0.000199,2]
[378524559,1754896003448,501.0,0.000199,2]
[378524560,1754896004857,501.0,0.000199,2]
[378524561,1754896006032,501.0,0.000199,2]
[378524562,1754896006837,460.0,0.00031355,30]
[378524563,1754896007067,460.0,0.00031355,30]
[378524564,1754896007304,460.0,0.00031355,30]
[378524565,1754896007576,460.0,0.00031355,30]
[378524566,1754896007838,10.53205865,0.000199,2]
[378524567,1754896007863,490.46794135,0.000199,2]
[378524568,1754896011319,501.0,0.000199,2]
[378524569,1754896013066,501.0,0.000199,2]
[378524570,1754896014285,501.0,0.000199,2]
[378524571,1754896015940,450.0,0.00031355,30]
[378524572,1754896015969,501.0,0.000199,2]
[378524573,1754896017240,501.0,0.000199,2]
[378524574,1754896018857,501.0,0.000199,2]
[378524575,1754896020566,501.0,0.000199,2]
[378524576,1754896022073,501.0,0.000199,2]
[378524577,1754896023667,501.0,0.000199,2]
[378524578,1754896026774,501.0,0.000199,2]
[378524579,1754896028024,501.0,0.000199,2]
[378524580,1754896029344,501.0,0.000199,2]
[378524581,1754896032064,501.0,0.000199,2]
[378524582,1754896033569,460.0,0.00031355,30]
[378524583,1754896033615,501.0,0.000199,2]
[378524584,1754896033822,460.0,0.00031355,30]
[378524585,1754896033931,460.0,0.00031355,30]
[378524586,1754896034162,466.94468461,0.00031355,30]
[378524587,1754896034210,460.0,0.00031355,30]
[378524588,1754896034493,460.0,0.00031355,30]
[378524589,1754896034681,289.56073616,0.00031355,30]
[378524590,1754896034957,501.0,0.000199,2]
[378524591,1754896036372,501.0,0.000199,2]
[378524592,1754896037307,465.41094485,0.00031355,30]
[378524593,1754896037724,501.0,0.000199,2]
[378524594,1754896039416,501.0,0.000199,2]
[378524595,1754896041289,501.0,0.000199,2]
[378524596,1754896042275,460.0,0.00031355,30]
[378524597,1754896042467,460.0,0.00031355,30]
[378524598,1754896043163,501.0,0.000199,2]
[378524599,1754896044737,501.0,0.000199,2]
[378524600,1754896046225,501.0,0.000199,2]
[378524601,1754896047820,501.0,0.000199,2]
[378524602,1754896049518,501.0,0.000199,2]
[378524603,1754896050898,501.0,0.000199,2]
[378524604,1754896052230,581.21866768,0.000199,2]
[378524605,1754896059783,365.76246316,0.00031355,30]
[378524607,1754896062755,460.0,0.00031355,30]
[378524608,1754896063006,460.0,0.00031355,30]
[378524609,1754896063177,460.0,0.00031355,30]
[378524610,1754896063949,460.0,0.00031355,30]
[378524611,1754896064320,460.0,0.00031355,30]
[378524612,1754896065899,460.0,0.00031355,30]
[378524613,1754896066134,510.88,0.00031355,30]
[378524614,1754896072221,178.95349153,0.00031355,30]
[378524615,1754896072565,566.97826364,0.00031355,30]
[378524616,1754896079073,460.0,0.00031355,30]
[378524617,1754896079302,460.0,0.00031355,30]
[378524618,1754896079561,460.0,0.00031355,30]
[378524619,1754896079814,155.79250762,0.00031355,30]
[378524620,1754896081978,460.0,0.00031355,30]
[378524621,1754896082217,460.0,0.00031355,30]
[378524622,1754896089498,460.0,0.00031355,30]
[378524623,1754896091900,460.0,0.00031355,30]
[378524624,1754896092332,463.57155922,0.00031355,30]
[378524625,1754896096467,466.83236669,0.00031355,30]
[378524626,1754896102018,460.0,0.00031355,30]
[378524627,1754896102253,460.0,0.00031355,30]
[378524628,1754896102521,460.0,0.00031355,30]
[378524629,1754896128722,460.0,0.00031355,30]
[378524630,1754896131288,2453.55613455,0.000199,2]
[378524631,1754896151275,460.0,0.00031355,30]
[378524634,1754896187511,460.0,0.0003136,30]
[378524635,1754896187755,460.0,0.0003136,30]
[378524636,1754896187999,460.0,0.0003136,30]
[378524659,1754896232441,-160.0,0.0002,3]
[378524660,1754896232451,-229.37877367,0.00020863,2]
[378524661,1754896232461,-30.33328632,0.00021079,2]
[378524665,1754896232566,-469.66671368,0.00021079,2]
[378524667,1754896232580,-500.0,0.00021079,2]
[378524668,1754896232589,-500.0,0.00021079,2]
[378524669,1754896232598,-205.96686392,0.00021079,2]
[378524683,1754896238238,-10681.61886928,0.00021079,2]
[378524684,1754896238248,-500.0,0.00021171,2]
[378524686,1754896238258,-261.91618571,0.00021171,2]
[378524688,1754896238268,-157.25250987,0.00021171,2]
[378524690,1754896238278,-500.0,0.00021171,2]
[378524692,1754896238288,-474.01746755,0.00021171,2]
[378524694,1754896238300,-25.98253245,0.00021171,2]
[378524696,1754896238310,-473.01746755,0.00021171,2]
[378524697,1754896238490,-26.98253245,0.00021171,2]
[378524698,1754896238500,-523.45823881,0.00021171,2]
[378524699,1754896238510,-500.0,0.00021171,2]
[378524700,1754896238520,-500.0,0.00021171,2]
[378524701,1754896238530,-365.99181222,0.00021171,2]
[378524702,1754896238539,-500.0,0.00021171,2]
[378524703,1754896238549,-500.0,0.00021171,2]
[378524705,1754896238558,-500.0,0.00021171,2]
[378524707,1754896238567,-500.0,0.00021171,2]
[378524709,1754896238580,-500.0,0.00021171,2]
[378524710,1754896238590,-500.0,0.00021171,2]
[378524711,1754896238600,-324.0,0.00021171,2]
[378524712,1754896238609,-500.0,0.00021171,2]
[378524713,1754896238619,-500.0,0.00021171,2]
[378524714,1754896238628,-500.0,0.00021171,2]
[378524715,1754896238638,-500.0,0.00021171,2]
[378524716,1754896238647,-500.0,0.00021171,2]
[378524717,1754896238657,-500.0,0.00021171,2]
[378524718,1754896238667,-500.0,0.00021171,2]
[378524719,1754896238676,-312.56419726,0.00021171,2]
[378524720,1754896238686,-500.0,0.00021171,2]
[378524721,1754896238695,-365.52745777,0.00021171,2]
[378524722,1754896238704,-258.84538474,0.00021171,2]
[378524723,1754896238714,-500.0,0.00021171,2]
[378524724,1754896238723,-500.0,0.00021171,2]
[378524725,1754896238732,-500.0,0.00021171,2]
[378524726,1754896238742,-500.0,0.00021171,2]
[378524727,1754896238752,-500.0,0.00021171,2]
[378524728,1754896238761,-500.0,0.00021171,2]
[378524729,1754896238771,-500.0,0.00021171,2]
[378524730,1754896238781,-500.0,0.00021171,2]
[378524731,1754896238790,-500.0,0.00021171,2]
[378524732,1754896238800,-500.0,0.00021171,2]
[378524733,1754896238810,-500.0,0.00021171,2]
[378524734,1754896238819,-440.20494447,0.00021171,2]
[378524735,1754896238830,-500.0,0.00021171,2]
[378524736,1754896238839,-500.0,0.00021171,2]
[378524737,1754896238849,-435.41439966,0.00021171,2]
[378524738,1754896238859,-500.0,0.00021171,2]
[378524739,1754896238869,-500.0,0.00021171,2]
[378524740,1754896238878,-500.0,0.00021171,2]
[378524741,1754896238888,-500.0,0.00021171,2]
[378524742,1754896238897,-500.0,0.00021171,2]
[378524743,1754896238907,-500.0,0.00021171,2]
[378524744,1754896238918,-500.0,0.00021171,2]
[378524745,1754896238929,-500.0,0.00021171,2]
[378524746,1754896238939,-500.0,0.00021171,2]
[378524747,1754896238949,-236.93849987,0.00021178,4]
[378524748,1754896238958,-500.0,0.00021233,2]
[378524749,1754896238968,-500.0,0.00021233,2]
[378524750,1754896238978,-500.0,0.00021233,2]
[378524751,1754896238987,-500.0,0.00021233,2]
[378524752,1754896238996,-252.4526827,0.00021233,2]
[378524753,1754896239006,-160.0,0.00021253,2]
[378524754,1754896239015,-216.68257536,0.00021253,2]
[378524755,1754896239024,-160.0,0.00021253,2]
[378524756,1754896239033,-417.15472785,0.00021253,2]
[378524757,1754896239042,-12671.21867243,0.00021253,2]
[378524758,1754896239052,-160.0,0.00021253,2]
[378524759,1754896239061,-160.0,0.00021253,2]
[378524760,1754896239070,-160.0,0.00021253,2]
[378524761,1754896239080,-461.69158338,0.00021253,2]
[378524762,1754896239090,-215.4905783,0.00021253,2]
[378524763,1754896239099,-843.18994796,0.00021253,2]
[378524764,1754896239108,-160.0,0.00021253,2]
[378524765,1754896239118,-231.9940742,0.00021253,2]
[378524766,1754896239127,-527.9539256,0.00021253,2]
[378524767,1754896239136,-160.0,0.00021276,2]
[378524768,1754896239145,-500.0,0.000213,2]
[378524769,1754896239155,-506.10857676,0.000213,2]
[378524770,1754896239165,-471.80286535,0.00021369,2]
[378524771,1754896239174,-291.1,0.00021376,2]
[378524772,1754896239183,-500.0,0.00021382,2]
[378524773,1754896239192,-500.0,0.00021399,2]
[378524774,1754896239201,-1460.94907747,0.00021399,2]
[378524775,1754896239211,-198.52843916,0.00021399,2]
[378524776,1754896239220,-1460.94907747,0.00021399,2]
[378524777,1754896239229,-1460.94907747,0.00021399,2]
[378524778,1754896239238,-1460.94907747,0.00021399,2]
[378524779,1754896239247,-1460.94907747,0.00021399,2]
[378524780,1754896239257,-1460.94907747,0.00021399,2]
[378524781,1754896239266,-1460.94907747,0.00021399,2]
[378524782,1754896239276,-1460.94907747,0.00021399,2]
[378524783,1754896239285,-1460.94907747,0.00021399,2]
[378524784,1754896239294,-1460.94907747,0.00021399,2]
[378524785,1754896239304,-34128.82481092,0.000214,2]
[378524786,1754896239313,-500.0,0.00021406,2]
[378524787,1754896239323,-500.87294392,0.00021406,2]
[378524788,1754896239332,-423.53710111,0.00021406,2]
[378524789,1754896239342,-500.0,0.0002141,2]
[378524790,1754896239351,-500.0,0.0002141,2]
[378524791,1754896239360,-500.0,0.00021464,2]
[378524792,1754896239370,-502.53893451,0.00021481,2]
[378524793,1754896239379,-500.0,0.00021481,2]
[378524794,1754896239390,-200.0,0.00021499,15]
[378524795,1754896239400,-200.0,0.00021499,15]
[378524796,1754896239409,-200.0,0.00021499,15]
[378524797,1754896239419,-200.0,0.00021499,15]
[378524798,1754896239429,-200.0,0.00021499,15]
[378524799,1754896239439,-308.0,0.000216,2]
[378524800,1754896239450,-1572.38,0.00021635,10]
[378524801,1754896239460,-1572.38,0.00021645,10]
[378524802,1754896239470,-2453.55613442,0.00021655,2]
[378524803,1754896239480,-291.1,0.00021696,2]
[378524804,1754896239492,-151.0,0.00021767,2]
[378524805,1754896239502,-151.0,0.00021767,2]
[378524806,1754896239512,-229.54265378,0.00021767,2]
[378524807,1754896239521,-363.48527871,0.00021781,2]
[378524808,1754896239530,-1004.06570944,0.00021781,2]
[378524809,1754896239540,-513.58874251,0.00021781,2]
[378524810,1754896239549,-1000.0,0.00021781,2]
[378524811,1754896239559,-556.71187073,0.00021848,2]
[378524812,1754896239569,-221.04145896,0.0002193,2]
[378524813,1754896239583,-500.0,0.00021936,2]
[378524814,1754896239592,-1000.0,0.00021954,2]
[378524815,1754896239602,-1000.0,0.00021958,2]
[378524816,1754896239611,-291.1,0.00022017,2]
[378524817,1754896239620,-1000.0,0.00022029,2]
[378524818,1754896239629,-1071.89747692,0.00022048,2]
[378524819,1754896239639,-500.0,0.00022329,2]
[378524820,1754896239648,-291.1,0.00022337,2]
[378524821,1754896239659,-791.5455996,0.0002236,2]
[378524822,1754896239668,-268.351987,0.00022421,2]
[378524823,1754896239678,-1722.68289714,0.00022451,2]
[378524824,1754896239688,-1000.0,0.00022484,2]
[378524826,1754896239698,-1610.18574959,0.00022502,2]
[378524827,1754896239707,-647.67398153,0.00022506,2]
[378524828,1754896239717,-500.0,0.00022611,2]
[378524829,1754896239727,-894.37345239,0.00022643,2]
[378524830,1754896239737,-291.1,0.00022657,2]
[378524831,1754896239748,-636.0,0.00022922,2]
[378524833,1754896239757,-971.0,0.00022922,2]
[378524834,1754896239767,-2151.0,0.00022922,2]
[378524835,1754896239777,-408.0,0.00022922,2]
[378524836,1754896239787,-416.844,0.00022922,2]
[378524837,1754896239797,-160.0,0.00022933,2]
[378524838,1754896239808,-151.0,0.00022942,7]
[378524839,1754896239818,-290.0,0.00022949,2]
[378524840,1754896239828,-291.1,0.00022978,2]
[378524841,1754896239838,-151.0,0.0002299,7]
[378524842,1754896239848,-186.0,0.00023,7]
[378524843,1754896239858,-160.0,0.00023,2]
[378524844,1754896239868,-1500.0,0.00023032,2]
[378524845,1754896239877,-268.351987,0.000231,10]
[378524846,1754896239887,-290.0,0.00023117,2]
[378524847,1754896239897,-290.0,0.00023121,2]
[378524848,1754896239906,-290.0,0.0002316,2]
[378524849,1754896239915,-268.351987,0.00023175,15]
[378524850,1754896239924,-290.0,0.00023205,2]
[378524851,1754896239934,-290.0,0.00023237,2]
[378524852,1754896239943,-151.0,0.00023295,7]
[378524853,1754896239953,-291.1,0.00023298,2]
[378524855,1754896239962,-150.0,0.000233,2]
[378524856,1754896239972,-290.0,0.00023331,2]
[378524857,1754896239981,-2453.55613442,0.00023409,2]
[378524859,1754896239991,-206.234,0.00023413,2]
[378524860,1754896240000,-179.415,0.00023413,2]
[378524861,1754896240010,-220.454,0.00023422,2]
[378524862,1754896240020,-250.0,0.00023422,2]
[378524863,1754896240029,-261.02,0.00023422,2]
[378524864,1754896240039,-219.814,0.00023422,2]
[378524865,1754896240050,-151.0,0.00023422,7]
[378524866,1754896240059,-268.351987,0.00023442,15]
[378524867,1754896240069,-260.0,0.00023481,2]
[378524868,1754896240078,-151.0,0.00023485,2]
[378524869,1754896240088,-151.0,0.00023485,2]
[378524870,1754896240097,-151.0,0.00023485,2]
[378524871,1754896240106,-151.0,0.00023485,2]
[378524872,1754896240116,-151.0,0.00023485,2]
[378524873,1754896240125,-151.0,0.00023485,2]
[378524874,1754896240134,-151.0,0.00023485,2]
[378524875,1754896240143,-151.0,0.00023485,2]
[378524876,1754896240153,-151.27698,0.00023485,2]
[378524877,1754896240162,-155.240556,0.00023485,2]
[378524878,1754896240172,-151.0,0.00023485,2]
[378524879,1754896240181,-151.0,0.00023485,2]
[378524880,1754896240190,-151.0,0.00023485,2]
[378524881,1754896240199,-151.0,0.00023485,2]
[378524882,1754896240208,-151.0,0.00023485,2]
[378524883,1754896240219,-151.0,0.00023485,2]
[378524884,1754896240228,-200.0,0.000235,7]
[378524885,1754896240238,-152.634385,0.000235,7]
[378524886,1754896240247,-1982.83367619,0.000235,2]
[378524887,1754896240257,-268.351987,0.00023513,2]
[378524888,1754896240266,-290.0,0.00023548,2]
[378524889,1754896240276,-2000.0,0.0002358,2]
[378524890,1754896240285,-9443.07,0.00023597,2]
[378524891,1754896240294,-200.0,0.00023599,15]
[378524892,1754896240304,-200.0,0.00023599,15]
[378524893,1754896240313,-200.0,0.00023599,15]
[378524894,1754896240323,-200.0,0.00023599,15]
[378524895,1754896240333,-200.0,0.00023599,15]
[378524897,1754896240342,-200.0,0.00023599,15]
[378524898,1754896240351,-200.0,0.00023599,15]
[378524899,1754896240361,-9354.4,0.000236,7]
[378524900,1754896240371,-417.15472785,0.000236,7]
[378524901,1754896240381,-12671.21867243,0.000236,7]